bitfinex/quotes_ETHUSD_20240730
["timestamp","ask_amount","ask_price","bid_price","bid_amount"]
[1722361279658,3.04997007,3300.0,3299.4,3.03085]
[1722361279827,3.0304,3299.9,3299.3,3.03094]
[1722361280026,3.03049,3299.8,3299.2,3.03103]
[1722361280422,3.03046,3299.9,3299.1,3.0311]
[1722361280764,3.05014007,3299.8,3299.2,3.09162449]
[1722361280918,2.546,3300.2,3298.9,7.35]
[1722361280919,3.03082,3299.5,3298.9,7.35]
[1722361281120,3.03111,3299.2,3298.3,3.0318]
[1722361281355,3.05077007,3299.1,3298.5,3.03164]
[1722361281668,3.05077007,3299.1,3298.1,10.38204]
[1722361281669,3.03154,3298.7,3298.1,10.38204]
[1722361281962,0.01960007,3298.7,3297.8,3.03231]
[1722361282168,3.03178,3298.4,3297.8,3.03232]
[1722361282321,0.01960007,3298.3,3297.8,3.03232]
[1722361282669,3.05151007,3298.3,3297.6,3.03243]
[1722361282815,3.05151007,3298.3,3297.7,3.03239]
[1722361283220,0.01960007,3298.3,3297.8,3.03232]
[1722361283543,2.2699,3298.8,3297.7,3.03236]
[1722361283851,0.01960007,3298.7,3297.7,3.09300086]
[1722361284052,3.03173,3298.5,3297.9,3.03219]
[1722361284261,0.01960007,3298.4,3297.7,3.70720223]
[1722361284580,3.03177,3298.4,3297.7,3.03236]
[1722361284749,3.03177,3298.4,3297.7,6.06473]
[1722361284750,0.01960007,3298.3,3297.7,6.06473]
[1722361285072,3.03196,3298.2,3297.5,6.06508]
[1722361285376,3.03224,3297.9,3297.4,7.35]
[1722361285548,3.03224,3297.9,3297.3,3.03269]
[1722361285873,0.01960007,3298.1,3297.3,3.63925]
[1722361286041,0.01960007,3298.1,3297.5,3.03259]
[1722361286242,0.01960007,3298.1,3297.6,3.03247]
[1722361286456,3.03181,3298.4,3297.6,3.03247]
[1722361286457,3.05148007,3298.3,3297.6,3.03247]
[1722361286669,10.42164,3298.6,3297.7,3.09299751]
[1722361286881,3.03187,3298.3,3297.6,3.03245]
[1722361287195,3.03187,3298.3,3296.3,3.03366]
[1722361287196,3.03296,3297.1,3296.3,3.03366]
[1722361287350,3.03296,3297.1,3296.3,3.03363]
[1722361287351,0.01960007,3297.0,3296.3,3.03363]
[1722361287550,3.05271007,3297.0,3296.3,3.03363]
[1722361287867,3.03332,3296.8,3296.1,3.03385]
[1722361288061,2.47680007,3296.9,3296.1,3.03382]
[1722361288278,5.50997007,3296.9,3296.2,3.03376]
[1722361288663,3.03329,3296.8,3295.9,38.03402]
[1722361288878,0.01960007,3296.7,3296.2,3.03379]
[1722361289063,2.4572,3296.9,3296.3,3.03365]
[1722361289271,3.03287,3297.2,3296.3,3.09432118]
[1722361289592,5.48994,3297.4,3296.7,3.03327]
[1722361289892,2.4572,3297.4,3296.9,3.03314]
[1722361290534,2.4572,3297.4,3296.8,3.09390473]
[1722361290678,2.4572,3297.4,3296.8,0.06066473]
[1722361290679,5.48996,3297.4,3296.8,0.06066473]
[1722361290860,3.03278,3297.3,3296.6,3.03342]
[1722361291060,0.01960007,3297.2,3296.6,0.63763221]
[1722361291653,0.01960007,3297.2,3296.7,3.03328]
[1722361291853,2.4572,3297.4,3297.0,3.03301]
[1722361292356,2.4572,3297.4,3296.8,0.06066183]
[1722361292594,2.4572,3297.4,3296.8,3.09384183]
[1722361292773,2.4572,3297.4,3296.9,3.03314]
[1722361293114,3.0,3297.8,3297.1,3.03291]
[1722361293266,3.03251,3297.6,3296.9,3.03308]
[1722361293467,3.03261,3297.5,3296.8,0.3731474]
[1722361293693,0.01960007,3297.4,3296.8,3.4063774]
[1722361293961,6.03237,3297.8,3297.0,3.03305]
[1722361294165,5.47818,3297.9,3297.2,3.03286]
[1722361294369,3.03233,3297.8,3297.2,3.03286]
[1722361294979,3.03233,3297.8,3297.0,3.37361974]
[1722361294980,3.03233,3297.8,3297.0,6.40658974]
[1722361295183,3.03233,3297.8,3297.1,3.04901288]
[1722361295803,2.4459,3297.9,3297.4,3.03267]
[1722361296001,2.4459,3297.9,3297.5,3.03253]
[1722361296205,2.4459,3297.9,3297.3,3.03273]
[1722361296408,2.46550007,3297.9,3297.1,6.08189288]
[1722361296609,3.03237,3297.8,3297.1,6.08189288]
[1722361296840,2.46550007,3297.9,3297.2,0.70290065]
[1722361296970,2.4459,3297.9,3297.4,3.03268]
[1722361297166,2.46550007,3297.9,3297.2,0.64225126]
[1722361297521,2.46550007,3297.9,3297.3,3.03274]
[1722361297675,2.46550007,3297.9,3297.4,3.03268]
[1722361297875,2.4459,3297.9,3297.4,3.03263]
[1722361298142,2.4459,3297.9,3297.6,3.0325]
[1722361298317,7.39,3298.0,3297.6,3.03245]
[1722361298619,5.34379,3298.5,3297.8,3.03226]
[1722361298764,2.3121,3298.5,3297.7,0.06064562]
[1722361299264,2.3121,3298.5,3297.9,3.03218]
[1722361299465,7.39,3298.7,3298.1,3.032]
[1722361299729,7.39,3298.7,3298.0,3.03213]
[1722361299730,0.01960007,3298.6,3298.0,3.03213]
[1722361300066,0.01960007,3298.6,3297.9,3.03218]
[1722361300378,2.3121,3298.9,3298.0,0.06063738]
[1722361300620,3.03113,3299.1,3298.5,3.03159]
[1722361300621,0.01960007,3299.1,3298.5,3.03159]
[1722361300763,0.01960007,3299.1,3298.4,3.03171]
[1722361300964,2.4714,3299.3,3298.5,0.06062726]
[1722361301277,3.03104,3299.2,3298.5,0.06062726]
[1722361301599,3.03103,3299.2,3298.5,3.09225726]
[1722361301800,3.03103,3299.2,3298.5,3.09223726]
[1722361302015,3.03115,3299.1,3298.5,3.09223726]
[1722361302332,2.4714,3299.3,3298.5,5.43862211]
[1722361302623,2.4714,3299.3,3298.8,3.03133]
[1722361303123,3.03072,3299.6,3298.9,3.0918767]
[1722361303264,2.3101,3299.9,3299.0,0.06061993]
[1722361303468,3.03049,3299.8,3299.1,3.03107]
[1722361303705,3.03049,3299.8,3298.5,2.34637485]
[1722361303706,3.03067,3299.6,3298.9,3.03129]
[1722361304009,3.03077,3299.5,3298.9,0.34061974]
[1722361304307,0.01960007,3299.5,3298.9,3.0313]
[1722361304507,0.01960007,3299.5,3299.0,3.0312]
[1722361305323,3.05022007,3299.7,3299.0,3.03115]
[1722361305462,3.03074,3299.6,3298.9,3.03126]
[1722361305678,0.01960007,3299.5,3299.0,3.03121]
[1722361305907,0.01960007,3299.5,3298.9,3.03131]
[1722361305908,3.05036007,3299.5,3298.9,3.03131]
[1722361306104,0.01960007,3299.5,3298.9,3.03131]
[1722361306309,0.01960007,3299.5,3298.9,3.637589]
[1722361306813,0.01960007,3299.5,3298.5,5.37800485]
[1722361306814,3.03109,3299.2,3298.5,5.37800485]
[1722361306969,3.03109,3299.2,3298.5,5.37798485]
[1722361306970,3.05069007,3299.2,3298.5,5.37798485]
[1722361307311,3.03109,3299.2,3298.6,3.03153]
[1722361307514,3.03132,3298.9,3298.3,3.03181]
[1722361308382,3.0314,3298.8,3298.1,13.72323174]
[1722361308568,3.03131,3298.9,3298.2,3.03194]
[1722361308897,3.03163,3298.6,3297.9,35.0]
[1722361309092,3.03163,3298.6,3297.7,3.03236]
[1722361309093,3.03184,3298.4,3297.7,3.03236]
[1722361309510,3.05128007,3298.5,3297.7,3.03236]
[1722361309694,3.574371,3298.8,3298.1,3.03199]
[1722361309695,0.01960007,3298.7,3298.1,3.03199]
[1722361310011,3.03141,3298.8,3298.2,3.03188]
[1722361310213,3.05118007,3298.7,3298.1,3.03199]
[1722361310620,0.32471808,3298.7,3297.6,35.0]
[1722361310827,0.32471808,3298.7,3297.8,3.03227]
[1722361310828,3.03159,3298.6,3297.8,3.03227]
[1722361310971,3.05133007,3298.5,3297.8,3.03227]
[1722361311314,3.05133007,3298.5,3297.6,35.0]
[1722361311315,3.03186,3298.3,3297.6,35.0]
[1722361311627,3.03186,3298.3,3297.7,3.0324]
[1722361311907,3.03186,3298.3,3297.6,35.0]
[1722361312109,6.0638,3298.3,3297.6,38.0325]
[1722361312316,3.03186,3298.3,3297.6,38.0325]
[1722361312719,3.03173,3298.5,3297.6,38.0325]
[1722361312720,3.03173,3298.5,3297.9,3.03218]
[1722361312871,0.01960007,3298.4,3297.9,3.03218]
[1722361313271,0.01960007,3298.4,3297.7,3.03238]
[1722361313272,3.05137007,3298.4,3297.7,3.03238]
[1722361313483,3.05137007,3298.4,3297.7,3.03235]
[1722361313671,3.03177,3298.4,3297.8,3.03231]
[1722361314210,3.03196,3298.2,3297.6,41.08145288]
[1722361314436,2.3648,3298.0,3297.5,7.35]
[1722361314573,3.03228,3297.9,3297.5,7.35]
[1722361314774,2.3648,3298.0,3297.5,7.35]
[1722361315377,0.01960007,3297.9,3297.5,7.35]
[1722361315576,2.38440007,3298.0,3297.5,7.35]
[1722361315805,2.3648,3298.0,3297.6,3.03245]
[1722361316006,2.3648,3298.0,3297.7,3.03239]
[1722361316374,0.01960007,3298.4,3297.8,3.03226]
[1722361316614,5.36449,3298.6,3298.0,3.03211]
[1722361316799,3.0,3298.5,3298.0,3.03211]
[1722361317430,3.03149,3298.7,3298.1,3.03203]
[1722361319248,3.03178,3298.4,3297.7,7.406194]
[1722361319423,0.01960007,3298.6,3297.9,3.03223]
[1722361319750,3.05123007,3298.6,3297.9,3.03223]
[1722361320250,3.03177,3298.4,3297.7,6.06471]
[1722361320453,3.03177,3298.4,3297.6,3.03245]
[1722361320454,3.03191,3298.3,3297.6,3.03245]
[1722361320659,0.01960007,3298.2,3297.6,3.03245]
[1722361320968,3.03164,3298.6,3297.9,3.03222]
[1722361321250,3.05134007,3298.5,3297.9,3.03222]
[1722361321458,3.03178,3298.4,3297.8,3.03232]
[1722361321605,3.03178,3298.4,3297.6,3.03245]
[1722361321606,3.03198,3298.2,3297.6,3.03245]
[1722361321810,3.03198,3298.2,3297.6,3.03244]
[1722361322050,3.03198,3298.2,3297.6,3.638947]
[1722361322437,0.01960007,3298.3,3297.6,3.03244]
[1722361322641,0.01960007,3298.3,3297.7,3.03239]
[1722361322840,3.05146007,3298.3,3297.7,3.03239]
[1722361323358,3.05146007,3298.3,3297.8,3.03231]
[1722361323552,0.01960007,3298.3,3297.9,3.03218]
[1722361323727,3.03187,3298.3,3297.7,3.03234]
[1722361323928,0.01960007,3298.2,3297.7,3.03234]
[1722361324240,3.03168,3298.5,3297.9,3.03216]
[1722361324437,3.03155,3298.7,3297.7,0.303234]
[1722361324438,3.0314,3298.8,3298.1,3.03199]
[1722361324610,3.05114007,3298.7,3298.0,3.03208]
[1722361324813,3.03159,3298.6,3298.0,3.03208]
[1722361325015,5.50368,3299.1,3298.4,3.03171]
[1722361325265,3.03122,3299.0,3298.4,3.03171]
[1722361325561,3.03122,3299.0,3298.4,3.03177]
[1722361325724,5.50363,3299.1,3298.5,3.0316]
[1722361325933,5.50363,3299.1,3298.4,3.03177]
[1722361325934,2.4725,3299.1,3298.6,3.03154]
[1722361326443,2.4725,3299.1,3298.6,3.03152]
[1722361326645,2.4725,3299.1,3298.7,3.03145]
[1722361326957,2.4725,3299.1,3298.6,3.34073505]
[1722361327641,5.50364,3299.1,3298.6,0.30921505]
[1722361327964,5.50364,3299.1,3298.5,3.03167]
[1722361328761,2.4725,3299.1,3298.6,3.03158]
[1722361330342,3.03137,3298.9,3298.4,35.0]
[1722361330865,0.01960007,3299.0,3298.4,35.0]
[1722361331064,3.03133,3298.9,3298.4,35.0]
[1722361331422,0.01960007,3298.8,3298.0,0.6124977]
[1722361331651,3.03167,3298.6,3297.7,3.03234]
[1722361331816,3.05128007,3298.5,3297.7,3.03234]
[1722361332015,3.03191,3298.3,3297.7,3.03234]
[1722361332213,3.03191,3298.3,3297.7,3.03236]
[1722361332817,3.03178,3298.4,3297.8,3.03232]
[1722361333272,3.05138007,3298.4,3297.8,3.03232]
[1722361333461,3.05138007,3298.4,3297.6,35.0]
[1722361333462,6.06379,3298.3,3297.6,38.03245]
[1722361333649,3.03206,3298.1,3297.6,35.0]
[1722361333865,2.43410007,3298.2,3297.6,35.0]
[1722361334055,3.03218,3298.0,3297.3,3.03272]
[1722361334221,3.03218,3298.0,3297.4,3.03262]
[1722361334580,0.01960007,3298.1,3297.5,3.03259]
[1722361334759,3.03216,3298.0,3297.4,38.03261]
[1722361335432,3.03216,3298.0,3297.4,35.0]
[1722361335687,3.03237,3297.8,3297.4,35.0]
[1722361335867,3.05202007,3297.7,3296.9,3.03308]
[1722361336036,3.05202007,3297.7,3297.0,3.03304]
[1722361336037,3.03255,3297.6,3297.0,3.03304]
[1722361336243,3.05215007,3297.6,3297.0,3.03304]
[1722361336604,3.03233,3297.8,3297.1,38.03295]
[1722361336741,0.01960007,3297.7,3297.3,3.03277]
[1722361337087,3.03168,3298.5,3297.9,3.03215]
[1722361337289,3.03168,3298.5,3297.5,3.03253]
[1722361337290,3.03187,3298.3,3297.5,3.03253]
[1722361337433,3.03187,3298.3,3298.0,35.0]
[1722361337633,3.05137007,3298.4,3298.0,35.0]
[1722361337833,2.3767,3298.8,3298.0,35.0]
[1722361338074,3.03165,3298.6,3298.0,41.08114288]
[1722361338304,3.03126,3299.0,3298.3,3.0318]
[1722361338433,3.03133,3298.9,3298.2,3.03195]
[1722361338631,3.03151,3298.7,3298.3,0.61246069]
[1722361338891,3.03182,3298.4,3297.8,3.03232]
[1722361339036,3.03186,3298.3,3297.8,3.03232]
[1722361339232,3.05142007,3298.4,3297.8,3.03232]
[1722361339233,3.03196,3298.2,3297.9,35.0]
[1722361339437,2.43850007,3298.3,3297.6,3.03248]
[1722361339689,3.03196,3298.2,3297.6,3.03244]
[1722361339831,3.03196,3298.2,3297.7,3.03241]
[1722361340034,3.05156007,3298.2,3297.7,35.0]
[1722361340286,3.05156007,3298.2,3297.6,3.0325]
[1722361340838,3.05156007,3298.2,3296.9,5.2894]
[1722361340839,0.01960007,3298.2,3296.9,5.2894]
[1722361341187,3.0323,3297.9,3297.2,3.03282]
[1722361341369,0.01960007,3297.8,3297.3,35.0]
[1722361341567,3.03242,3297.7,3297.3,35.0]
[1722361342082,3.05192007,3297.8,3297.3,35.0]
[1722361342286,3.0323,3297.9,3297.3,38.03278]
[1722361342590,3.05192007,3297.8,3297.3,35.0]
[1722361342804,3.03257,3297.6,3296.8,3.0]
[1722361342957,3.03257,3297.6,3296.4,2.4251]
[1722361342958,0.01960007,3297.5,3296.7,3.0333]
[1722361343284,3.05225007,3297.5,3296.9,3.03313]
[1722361344680,3.03236,3297.8,3296.9,3.04901288]
[1722361344886,3.032,3298.2,3297.0,0.06065759]
[1722361345041,5.4189,3298.3,3297.6,3.03245]
[1722361345042,5.45078,3298.3,3297.6,3.03245]
[1722361345244,3.03198,3298.2,3297.7,35.606502]
[1722361345443,3.03198,3298.2,3297.7,35.0]
[1722361345686,3.0322,3298.0,3297.4,3.03263]
[1722361345997,3.03205,3298.1,3297.5,3.03258]
[1722361346139,3.03183,3298.4,3297.6,38.639021]
[1722361346339,3.03196,3298.2,3297.7,3.0324]
[1722361346587,3.03197,3298.2,3297.7,3.0324]
[1722361346735,3.05157007,3298.2,3297.6,35.606521]
[1722361347141,3.03205,3298.1,3297.6,35.606521]
[1722361347345,3.03215,3298.0,3297.6,35.0]
[1722361347595,3.03195,3298.2,3297.6,35.0]
[1722361347776,3.05133007,3298.5,3297.8,3.03225]
[1722361347951,3.05133007,3298.5,3297.6,41.06489]
[1722361348270,3.03188,3298.3,3297.7,6.08137288]
[1722361348680,3.03177,3298.4,3297.8,3.03231]
[1722361349085,0.01960007,3298.3,3297.6,35.0]
[1722361349283,3.03183,3298.4,3297.7,3.03233]
[1722361349598,3.03183,3298.4,3297.6,35.0]
[1722361349599,3.0321,3298.1,3297.6,35.0]
[1722361350262,0.01960007,3298.0,3296.9,0.3042]
[1722361350461,5.3063,3298.7,3296.0,3.03394]
[1722361350462,3.03247,3297.7,3297.0,3.03299]
[1722361350700,3.05218007,3297.6,3297.0,3.03299]
[1722361350881,3.03266,3297.5,3296.7,3.03328]
[1722361351058,3.03266,3297.5,3296.9,3.03309]
[1722361351563,3.0327,3297.4,3296.9,3.03309]
[1722361351758,3.0327,3297.4,3296.8,3.04901288]
[1722361351759,3.03283,3297.3,3296.8,3.04901288]
[1722361351962,3.03297,3297.1,3296.6,3.03342]
[1722361352253,2.2709,3297.9,3296.9,3.03314]
[1722361352254,0.01960007,3297.3,3296.9,3.03314]
[1722361352455,0.01960007,3297.3,3296.7,3.03325]
[1722361352683,3.05244007,3297.3,3296.7,3.03325]
[1722361352874,0.01960007,3297.2,3296.8,3.03319]
[1722361353069,0.01960007,3297.3,3296.9,3.03315]
[1722361353308,0.01960007,3297.3,3296.7,3.639922]
[1722361353593,3.03292,3297.2,3296.7,0.606672]
[1722361353809,3.05257007,3297.1,3296.5,3.03351]
[1722361354157,0.01960007,3297.1,3296.3,3.03364]
[1722361354354,3.03302,3297.1,3296.3,3.03364]
[1722361354554,3.03302,3297.1,3296.1,3.0]
[1722361354555,3.03302,3297.1,3296.4,3.03361]
[1722361354801,3.03262,3297.5,3296.4,3.03361]
[1722361354802,8.30316,3297.9,3297.1,3.03296]
[1722361354968,2.2709,3297.9,3297.3,3.03269]
[1722361355154,2.2709,3297.9,3297.0,3.03298]
[1722361355155,3.03241,3297.7,3297.0,3.03298]
[1722361355361,3.03241,3297.7,3297.1,0.0606504]
[1722361355565,3.03241,3297.7,3297.1,0.30937304]
[1722361355566,3.0325,3297.6,3297.1,0.30937304]
[1722361355956,0.01960007,3297.8,3297.1,0.30937304]
[1722361356259,3.05193007,3297.8,3297.2,3.03286]
[1722361357100,0.01960007,3297.7,3297.1,0.30937304]
[1722361357272,3.05201007,3297.7,3297.1,3.03295]
[1722361357662,3.05192007,3297.8,3297.2,3.03284]
[1722361357863,0.01960007,3297.8,3297.3,3.03276]
[1722361358083,0.01960007,3297.8,3296.9,3.03309]
[1722361358285,3.0327,3297.4,3296.7,3.03329]
[1722361358498,0.01960007,3297.3,3296.7,3.03329]
[1722361358697,3.03306,3297.0,3296.4,3.64639583]
[1722361358985,3.03306,3297.0,3296.3,3.03362]
[1722361358986,3.05275007,3296.9,3296.3,3.03362]
[1722361359498,3.05275007,3296.9,3295.9,3.03401]
[1722361359499,3.03338,3296.7,3295.9,3.03401]
[1722361359722,3.03338,3296.7,3296.1,3.03382]
[1722361359930,3.05284007,3296.8,3295.9,3.034]
[1722361360092,3.05284007,3296.8,3296.2,3.03377]
[1722361360296,0.01960007,3296.9,3296.3,3.03369]
[1722361360495,3.03343,3296.6,3296.0,3.03397]
[1722361360978,3.03338,3296.7,3296.0,3.03391]
[1722361361170,0.01960007,3296.6,3296.1,3.03383]
[1722361361375,0.01960007,3296.6,3296.0,3.03397]
[1722361361376,3.05309007,3296.6,3296.0,3.03397]
[1722361361576,0.01960007,3296.6,3296.0,3.03392]
[1722361361826,0.01960007,3296.6,3296.0,6.06784]
[1722361361973,0.01960007,3296.6,3296.1,3.03383]
[1722361362620,3.05303007,3296.6,3296.0,3.03392]
[1722361362829,0.01960007,3296.5,3296.0,2.53392]
[1722361363048,3.05317007,3296.5,3295.9,3.03407]
[1722361363202,3.03367,3296.4,3295.8,3.03415]
[1722361363542,0.32490308,3296.5,3295.1,3.03478]
[1722361363543,3.05336007,3296.3,3295.1,3.03478]
[1722361363717,3.03358,3296.5,3295.8,3.0341]
[1722361363916,3.03358,3296.5,3295.9,3.03402]
[1722361363917,0.01960007,3296.4,3295.9,3.03402]
[1722361364739,3.05321007,3296.4,3295.8,3.03415]
[1722361365537,3.0335,3296.6,3295.8,3.0341]
[1722361365736,3.0335,3296.6,3296.0,3.03397]
[1722361365945,0.01960007,3296.5,3295.8,3.0341]
[1722361366319,3.03376,3296.3,3295.7,35.0]
[1722361366522,3.03365,3296.4,3295.7,35.0]
[1722361366717,3.03339,3296.7,3295.9,3.03401]
[1722361367030,3.03356,3296.5,3295.7,35.0]
[1722361367341,0.01960007,3296.4,3295.8,3.03416]
[1722361367524,3.05325007,3296.4,3295.8,3.03416]
[1722361367896,3.03336,3296.7,3296.0,3.03393]
[1722361368136,3.47322566,3296.6,3296.0,3.03393]
[1722361368299,3.0336,3296.5,3295.8,3.03416]
[1722361368497,0.01960007,3296.4,3295.8,3.03409]
[1722361368844,0.42015559,3296.6,3296.0,3.03396]
[1722361368994,0.01960007,3296.5,3296.0,3.03396]
[1722361369196,3.05313007,3296.5,3295.8,3.03409]
[1722361369446,3.03365,3296.4,3295.8,3.03409]
[1722361369786,3.03365,3296.4,3295.9,3.03402]
[1722361369787,0.01960007,3296.4,3295.9,3.03402]
[1722361370359,3.05321007,3296.4,3295.9,35.0]
[1722361370569,3.70389864,3296.4,3295.9,35.0]
[1722361370916,0.67028864,3296.4,3296.0,3.03393]
[1722361371222,0.01960007,3296.4,3295.8,3.03411]
[1722361371424,3.0,3296.9,3295.9,0.06067898]
[1722361371667,3.05281007,3296.9,3295.5,3.0344]
[1722361371963,3.03301,3297.1,3296.5,3.03344]
[1722361372136,5.39949,3297.4,3296.5,3.03344]
[1722361372337,0.01960007,3297.3,3296.7,3.03329]
[1722361372532,0.01960007,3297.3,3296.8,3.03324]
[1722361372779,3.03301,3297.1,3296.0,38.33797]
[1722361372921,3.03301,3297.1,3296.5,3.03344]
[1722361373268,2.3668,3297.4,3297.0,3.03305]
[1722361373511,3.03259,3297.6,3296.9,3.03309]
[1722361373767,3.03237,3297.8,3297.0,3.03305]
[1722361373768,0.01960007,3297.7,3297.0,3.03305]
[1722361374669,3.05206007,3297.7,3297.0,3.03305]
[1722361374873,3.03261,3297.5,3296.8,3.03324]
[1722361375091,3.03261,3297.5,3296.9,3.03314]
[1722361376027,3.05236007,3297.4,3296.8,3.03324]
[1722361376437,3.05236007,3297.4,3296.5,3.03344]
[1722361376438,3.03281,3297.3,3296.7,3.03329]
[1722361377161,0.01960007,3297.4,3296.4,3.03352]
[1722361377478,5.2849,3298.1,3297.1,3.03291]
[1722361377784,1.086495,3298.0,3297.1,3.03291]
[1722361377922,3.03232,3297.9,3297.1,3.03291]
[1722361378126,3.03232,3297.9,3297.3,3.03272]
[1722361378362,4.118635,3298.0,3297.2,3.03278]
[1722361378572,1.2435635,3297.9,3297.4,3.03269]
[1722361378730,1.2435635,3297.9,3297.2,3.03278]
[1722361378731,4.2758535,3297.9,3297.2,3.03278]
[1722361379265,4.2758535,3297.9,3297.3,3.03272]
[1722361379491,1.2435635,3297.9,3297.4,3.03268]
[1722361379833,1.2435635,3297.9,3297.5,3.03258]
[1722361380148,2.2849,3298.1,3297.6,3.0325]
[1722361380528,2.30450007,3298.1,3297.4,3.03268]
[1722361380733,3.03218,3298.0,3297.4,3.03268]
[1722361381042,0.01960007,3297.9,3297.0,3.03299]
[1722361381387,0.01960007,3297.9,3296.4,2.4899]
[1722361381388,3.05183007,3297.9,3297.3,3.03273]
[1722361381885,5.31695,3298.1,3297.4,0.06065259]
[1722361382195,5.33655007,3298.1,3297.3,3.03276]
[1722361382340,2.30450007,3298.1,3297.1,3.03291]
[1722361382544,3.03236,3297.8,3297.1,3.03291]
[1722361382786,0.01960007,3297.7,3297.1,3.03291]
[1722361383093,3.03223,3297.9,3297.3,3.03272]
[1722361383241,0.01960007,3297.8,3297.3,3.03272]
[1722361383578,3.03244,3297.7,3297.2,3.03287]
[1722361383784,0.01960007,3297.8,3297.3,3.03274]
[1722361383984,2.2849,3298.1,3297.6,3.03246]
[1722361384186,6.03159,3298.6,3297.8,3.03228]
[1722361384354,6.03159,3298.6,3297.8,3.03227]
[1722361384355,6.03168,3298.5,3297.8,3.03227]
[1722361384558,3.05128007,3298.5,3297.9,3.03214]
[1722361384758,3.88737808,3298.5,3297.9,3.03214]
[1722361384959,0.01960007,3298.5,3298.1,3.03198]
[1722361385144,0.01960007,3298.6,3298.0,3.03213]
[1722361385344,0.01960007,3298.6,3298.1,3.03201]
[1722361385542,5.36086007,3298.7,3298.1,3.03201]
[1722361385786,2.32930007,3298.7,3298.2,3.03195]
[1722361386087,3.03124,3299.0,3298.2,6.12444674]
[1722361386290,3.03136,3298.9,3298.2,3.09249674]
[1722361386443,5.38967,3299.2,3298.4,3.03171]
[1722361386649,2.3586,3299.2,3298.6,3.03152]
[1722361386844,0.23586,3299.1,3298.7,3.03149]
[1722361387060,0.01960007,3299.3,3298.8,3.03138]
[1722361387263,7.39,3299.4,3298.8,3.03133]
[1722361387464,7.39,3299.4,3298.9,3.0313]
[1722361387642,7.39,3299.4,3299.1,3.03107]
[1722361387851,5.28216,3299.7,3298.5,35.0]
[1722361387852,2.2515,3299.7,3299.2,3.03096]
[1722361388048,0.528216,3299.6,3299.2,3.03096]
[1722361388344,2.548,3300.1,3299.3,0.06061539]
[1722361388345,3.03026,3300.1,3299.3,0.06061539]
[1722361388597,2.3147,3300.3,3299.1,3.03107]
[1722361388598,3.03045,3299.9,3299.1,3.03107]
[1722361388794,0.01960007,3299.8,3299.0,3.03121]
[1722361388997,3.03067,3299.6,3299.0,3.03121]
[1722361389301,3.05037007,3299.5,3298.7,10.38147]
[1722361389505,0.32463708,3299.4,3298.8,3.03132]
[1722361389683,3.0304,3299.9,3298.5,35.0]
[1722361389849,3.03028,3300.1,3299.1,3.03112]
[1722361390053,3.03045,3299.9,3299.2,3.09158264]
[1722361390255,3.03059,3299.7,3299.0,3.03113]
[1722361390592,3.03045,3299.9,3299.1,3.03106]
[1722361390762,0.303045,3299.8,3299.2,3.09159265]
[1722361391091,0.303045,3299.8,3299.3,3.03093]
[1722361391448,3.03026,3300.1,3299.3,3.03093]
[1722361391449,3.03035,3300.0,3299.3,3.03093]
[1722361392206,3.03044,3299.9,3299.2,3.09164265]
[1722361392996,3.03044,3299.9,3299.3,3.03094]
[1722361393301,5.34478,3300.3,3299.3,3.03089]
[1722361393488,2.548,3300.5,3299.7,3.03052]
[1722361393489,3.0299,3300.5,3299.7,3.03052]
[1722361393688,0.2548,3300.4,3299.8,3.03048]
[1722361394298,0.2548,3300.4,3299.9,0.06060431]
[1722361394599,9.782,3300.7,3300.0,3.03027]
[1722361394905,3.04935007,3300.6,3299.8,3.03042]
[1722361395397,3.04937007,3300.6,3299.6,3.03061]
[1722361395700,3.04937007,3300.6,3299.4,3.03078]
[1722361395701,3.0302,3300.2,3299.4,3.03078]
[1722361395915,0.32262007,3300.1,3299.4,3.03077]
[1722361396062,3.0303,3300.0,3299.5,35.0]
[1722361396261,3.0303,3300.0,3299.4,3.03077]
[1722361396609,3.0303,3300.0,3299.2,10.38102]
[1722361396610,0.30302,3300.1,3299.6,3.03061]
[1722361396907,6.05997,3300.4,3299.7,3.03051]
[1722361397054,0.01960007,3300.3,3299.7,3.03051]
[1722361397255,3.0,3300.6,3299.8,3.03047]
[1722361397490,3.01960007,3300.6,3299.9,3.0909198]
[1722361397677,6.04939007,3300.6,3299.9,3.0909198]
[1722361398017,4.61302901,3300.5,3299.8,3.03047]
[1722361398158,3.03,3300.4,3299.4,3.0308]
[1722361398354,3.0301,3300.3,3299.4,3.0308]
[1722361398610,3.0301,3300.3,3299.6,3.03066]
[1722361398787,3.03027,3300.1,3299.5,3.03074]
[1722361398967,3.03012,3300.2,3299.2,42.35]
[1722361399176,3.03012,3300.2,3299.5,3.03071]
[1722361399377,3.73217246,3300.2,3299.5,3.03071]
[1722361399574,3.73217246,3300.2,3299.5,3.0307]
[1722361399756,3.03026,3300.1,3299.5,3.0307]
[1722361400161,3.0304,3299.9,3299.2,10.38103]
[1722361400459,3.33354,3299.8,3299.2,7.35]
[1722361400662,0.01960007,3300.0,3299.2,7.35]
[1722361400888,3.03044,3299.9,3299.3,3.03093]
[1722361401207,1.58313901,3300.5,3299.7,3.03056]
[1722361401406,3.01960007,3300.6,3299.8,0.06060189]
[1722361401577,3.02957,3300.8,3300.1,3.03016]
[1722361401777,3.02967,3300.7,3300.2,0.06059561]
[1722361402193,3.02934,3301.1,3300.2,0.06059561]
[1722361402410,3.02964,3300.8,3300.2,0.06059561]
[1722361402613,3.0297,3300.7,3300.2,0.06059561]
[1722361402813,3.02979,3300.6,3299.9,3.03032]
[1722361402970,3.02995,3300.4,3299.8,3.03041]
[1722361403164,3.02981,3300.6,3299.8,3.03041]
[1722361403370,3.02981,3300.6,3300.0,3.03024]
[1722361403585,3.63771301,3300.6,3300.0,3.03024]